Cogmind - Beta 14 @@@ ROGUE MODE // 2024.10.21 @ 21:00:58 Player: WazdakkaGutsmek Result: Destroyed self with Heavy Missile Launcher Performance ------------- Evolutions (0) 0 Regions Visited (4) 800 Robots Destroyed (23) 115 Value Destroyed (697) 697 Prototype IDs (3) 60 Alien Tech Used (0) 0 Bonus (136) 136 TOTAL SCORE: 1808 Bonus ------- Follower Combat Kills 183 Friendly Fire -47 Cogmind --------- Core Integrity 0/250 Matter 250/300 Energy 132/132 System Corruption 0% Temperature Cool (15) Movement Core (300) Ox5 Location -7/Recycling Parts ------- > --- POWER (1) -------- Deuterium-Ion Engine > --- PROPULSION (2) --- (None) > --- UTILITY (2) ------ Armored Scrap Engine > --- WEAPON (2) ------- Rocket Launcher Heavy Missile Launcher > --- INVENTORY (5) ---- Improved Heat Sink Improved Cooling System Hardlight Generator Peak State ------------ > --- POWER ------------ Deuterium-Ion Engine > --- PROPULSION ------- Light Treads Improved Titanium Leg > --- UTILITY ---------- Armored Scrap Engine > --- WEAPON ----------- Rocket Launcher Heavy Missile Launcher > --- INVENTORY -------- Improved Heat Sink Hardlight Generator [Rating: 34] Favorites ----------- Power Light Nuclear Core Engine Subdweller Power Source Power Core Light Nuclear Core Propulsion Light Treads Treads Light Treads Leg Aluminum Leg Utility Small Storage Unit Device Improved Terrain Scanner Storage Small Storage Unit Protection Improved Light Armor Plating Weapon Light Assault Rifle Energy Gun Particle Gun Ballistic Gun Light Assault Rifle Ballistic Cannon Gauss Cannon Launcher Rocket Launcher Build | -11 -10 -10 -10 -7 ------- Run | Yrd Mat Min Sub Rec Slots Evolved . | . . . . . Power . | . . . . . Propulsion . | . . . . . Utility . | . . . . . Weapon . | . . . . . Parts Attached 22 | . 1 4 10 7 Power 5 | . . 1 3 1 Engine 4 | . . . 3 1 Core 1 | . . 1 . . Reactor . | . . . . . Propulsion 4 | . . 2 1 1 Treads 3 | . . 2 1 . Leg 1 | . . . . 1 Wheel . | . . . . . Hover . | . . . . . Flight . | . . . . . Utility 4 | . . 1 . 3 Device 3 | . . 1 . 2 Storage . | . . . . . Processor . | . . . . . Hackware . | . . . . . Protection 1 | . . . . 1 Artifact . | . . . . . Weapon 9 | . 1 . 6 2 Energy Gun 1 | . . . 1 . Energy Cannon . | . . . . . Ballistic Gun 2 | . 1 . 1 . Ballistic Cannon 1 | . . . . 1 Launcher 5 | . . . 4 1 Special Weapon . | . . . . . Impact Weapon . | . . . . . Slashing Weapon . | . . . . . Piercing Weapon . | . . . . . Special Melee Weapon . | . . . . . Unidentified Prototypes 1 | . . . . 1 Parts Lost 5 | . . 1 4 . Power . | . . . . . Propulsion 2 | . . 1 1 . Utility 1 | . . . 1 . Weapon 2 | . . . 2 . Highest Loss Streak 2 | . . 1 2 . To Critical Strikes . | . . . . . Average Slot Usage (%) 91 | . 85 98 89 81 Engine 8 | . 14 5 11 13 Core 4 | . . 8 2 . Treads 17 | . . 17 26 13 Leg 7 | . 28 9 . 6 Device 9 | . . 12 6 4 Storage 12 | . 14 14 14 9 Protection 1 | . . . . 4 Energy Gun 2 | . 11 . 11 . Ballistic Gun 16 | . 16 28 10 . Ballistic Cannon 1 | . . . . 3 Launcher 8 | . . . 4 24 Peak Build Rating 34 | 6 6 11 12 34 Average Rating 11 | 6 6 9 10 16 On Entrance 7 | 6 6 6 11 8 Naked Turns . | . . . . . Heaviest Build 24 | 13 13 14 17 24 Greatest Support 40 | 20 20 40 40 20 Greatest Overweight (x) 5 | . . 1 . 5 Average Overweight (x) . | . . . . . Largest Inventory Capacity 8 | 8 8 8 8 8 Average Capacity 7 | 8 8 8 8 6 Most Carried 8 | 6 7 6 8 8 Average Carried 5 | 6 5 5 7 5 Final Capacity 8 | 8 8 8 8 5 Final Carried 6 | 6 5 6 6 3 Scrap Engine Consumption 9 | . . . . 9 Constructs Created 1 | . . . . 1 Class Distribution -------------------- 94% | Mutant 3% | Construct Dominant Class ---------------- Mutant | -10/Materials Mutant | -10/Mines Mutant | -10/Subcaves Mutant | -7/Recycling Resources | -11 -10 -10 -10 -7 ----------- Run | Yrd Mat Min Sub Rec Matter Collected 1229 | 200 . 349 230 450 Remotely . | . . . . . Salvage Created 969 | . . 286 245 438 Parts 48 | . . 14 17 17 Haulers Intercepted 1 | . . . . 1 Recyclers Shooed 1 | . . . . 1 Parts Field Recycled . | . . . . . Retrieved Matter . | . . . . . Parts Self-Destructed 15 | . . . 15 . Prevented . | . . . . . Kills | -11 -10 -10 -10 -7 ------- Run | Yrd Mat Min Sub Rec Combat Hostiles Destroyed 16 | . . 4 7 5 Guns 7 | . . 4 3 . AOE 9 | . . . 4 5 Classes Destroyed 11 | . . 3 4 4 Tunneler 1 | . . 1 . . Hauler 1 | . . . . 1 Recycler 2 | . . 1 . 1 Turret 2 | . . . 2 . Swarmer 3 | . . . 3 . Grunt 5 | . . 4 . 1 Programmer 1 | . . . . 1 Subdweller 4 | . . . 4 . Scientist 1 | . . . . 1 Scrapper 3 | . . . . 3 Zionite 1 | . . . 1 . Best Kill Streak 4 | . . 2 3 4 Combat Bots Only 3 | . . 2 3 2 Max Kills in Single Turn 2 | . . 1 1 2 Gunslinging . | . . . . . Exploded 1 | . . . 1 1 Melee . | . . . . . Uniques/NPCs Destroyed . | . . . . . Combat | -11 -10 -10 -10 -7 -------- Run | Yrd Mat Min Sub Rec Hostile Shots Fired 110 | . . 35 64 11 Missed 41 | . . 15 25 1 Damage Taken 1373 | . . 365 669 339 Core 266 | . . 55 123 88 Absorbed by Shields 20 | . . . . 20 Core Remaining (%) 100 | 100 . . . . Volleys Fired 83 | . . 26 49 8 Largest 2 | . . 2 2 2 Hottest 95 | . . 40 95 72 Shots Fired 155 | . . 52 87 16 Gun 116 | . . 52 64 . Cannon . | . . . . . Launcher 39 | . . . 23 16 Special . | . . . . . Kinetic 79 | . . 52 27 . Thermal 37 | . . . 37 . Explosive 39 | . . . 23 16 Electromagnetic . | . . . . . Robot Hit Streak 27 | . . 11 27 8 Robot Miss Streak 4 | . . 4 2 1 Penetration Max . | . . . . . Secondary Targets . | . . . . . Shots Hit Robots 107 | . . 34 64 9 Core Hits 68 | . . 15 32 21 Critical Kills . | . . . . . Critical Parts Destroyed 1 | . . 1 . . Critical Strikes 3 | . . 1 2 . Burn 2 | . . . 2 . Destroy 1 | . . 1 . . Melee Attacks . | . . . . . Impact . | . . . . . Slashing . | . . . . . Piercing . | . . . . . Sneak Attacks . | . . . . . Combat Hostiles . | . . . . . Follow-up Attacks . | . . . . . Damage Inflicted 3414 | . . 352 1496 1566 Guns 967 | . . 352 615 . Cannons . | . . . . . Explosions 2444 | . . . 881 1563 Melee . | . . . . . Ramming 3 | . . . . 3 Kinetic 514 | . . 352 162 . Thermal 453 | . . . 453 . Explosive 2444 | . . . 881 1563 Electromagnetic . | . . . . . Impact . | . . . . . Slashing . | . . . . . Piercing . | . . . . . Highest Corruption . | . . . . . Average Corruption . | . . . . . Corruption Purged . | . . . . . Corruption Blocked . | . . . . . Overload Shots . | . . . . . Overflow Damage 105 | . . . 31 74 Projectiles . | . . . . . Explosions 105 | . . . 31 74 Melee . | . . . . . Knockbacks . | . . . . . Impact . | . . . . . Kinetic . | . . . . . Secondary . | . . . . . Self-Inflicted Damage 267 | . . . 106 161 Shots 9 | . . . 5 4 Rammed 1 | . . . . 1 Targets Rammed 1 | . . . . 1 Kicked . | . . . . . Crushed . | . . . . . Highest Temperature 133 | . . 18 16 133 Average Temperature 22 | . . 9 6 50 Received Heat Transfer 340 | . . 114 177 49 Siege Activations . | . . . . . Robots Corrupted . | . . . . . Combat Hostiles . | . . . . . Parts Fried . | . . . . . Impact Corruptions . | . . . . . Robots Melted . | . . . . . Combat Hostiles . | . . . . . Parts Melted . | . . . . . Heat Transferred 1221 | . . . 1221 . Parts Sabotaged . | . . . . . Parts Stolen . | . . . . . Parts Stripped . | . . . . . Power Chain Reactions . | . . . . . Alert | -11 -10 -10 -10 -7 ------- Run | Yrd Mat Min Sub Rec Peak Influence 134 | . . 60 . 134 Initial 120 | . . . . 120 Average 31 | . . 19 . 54 Maximum Alert Level . | . . . . . Low Security (%) 100 | 100 100 100 . 100 Level 1 . | . . . . . Level 2 . | . . . . . Level 3 . | . . . . . Level 4 . | . . . . . Level 5 . | . . . . . High Security . | . . . . . Max Security . | . . . . . Squads Dispatched . | . . . . . Investigation . | . . . . . Extermination . | . . . . . Reinforcement . | . . . . . Assault . | . . . . . Garrison . | . . . . . Intercept . | . . . . . Searches Triggered . | . . . . . Construction Impeded . | . . . . . Haulers Reinforced . | . . . . . Active Scanning Responses . | . . . . . Cargo Convoy Interrupts . | . . . . . Stealth | -11 -10 -10 -10 -7 --------- Run | Yrd Mat Min Sub Rec Distress Signals . | . . . . . Communications Jammed . | . . . . . Distress Signals . | . . . . . Times Spotted 31 | . . 6 21 4 Peak Tracking Total 8 | . . 2 8 2 Tactical Retreats 5 | . . . 5 . Traps | -11 -10 -10 -10 -7 ------- Run | Yrd Mat Min Sub Rec Traps Triggered . | . . . . . Indirectly . | . . . . . Trap Hack Attempts . | . . . . . Triggered . | . . . . . Disarmed . | . . . . . Reprogrammed . | . . . . . Reused . | . . . . . Traps Extracted . | . . . . . Installed . | . . . . . Triggered . | . . . . . Machines | -11 -10 -10 -10 -7 ---------- Run | Yrd Mat Min Sub Rec Machines Disabled 5 | . . . 4 1 Max in Single Turn 3 | . . . 3 1 Machines Repaired . | . . . . . Machines Dismantled . | . . . . . Machines Sabotaged . | . . . . . Overloaded Fab Kills . | . . . . . Hacking | -11 -10 -10 -10 -7 --------- Run | Yrd Mat Min Sub Rec Machines Accessed 10 | . . . . 10 Terminals 6 | . . . . 6 Fabricators . | . . . . . Repair Stations . | . . . . . Recycling Units 3 | . . . . 3 Scanalyzers . | . . . . . Garrison Access . | . . . . . Total Hacks 20 | . . . . 20 Successful 8 | . . . . 8 Failed 12 | . . . . 12 Catastrophic 3 | . . . . 3 Database Lockouts . | . . . . . Manual 8 | . . . . 8 Terminals 13 | . . . . 13 Fabricators . | . . . . . Repair Stations . | . . . . . Recycling Units 5 | . . . . 5 Scanalyzers . | . . . . . Garrison Access . | . . . . . Terminal Hacks 4 | . . . . 4 Terminal Index 1 | . . . . 1 Alert Level 1 | . . . . 1 Release Object 2 | . . . . 2 Fabricator Hacks . | . . . . . Repair Station Hacks . | . . . . . Recycling Unit Hacks 3 | . . . . 3 Retrieve Components 3 | . . . . 3 Scanalyzer . | . . . . . Garrison Access Hacks . | . . . . . Unauthorized Hacks 1 | . . . . 1 Terminals 1 | . . . . 1 Botnet 1 | . . . . 1 Fabricators . | . . . . . Repair Stations . | . . . . . Recycling Units . | . . . . . Scanalyzers . | . . . . . Garrison Access . | . . . . . Data Cores Recovered . | . . . . . Used . | . . . . . Hacking Detections 8 | . . . . 8 Full Trace Events 2 | . . . . 2 Feedback Events . | . . . . . Feedback Blocked . | . . . . . Robot Schematics Acquired . | . . . . . Robots Built . | . . . . . Authchips . | . . . . . Time . | . . . . . Total Robot Build Rating . | . . . . . Part Schematics Acquired . | . . . . . Parts Built . | . . . . . Authchips . | . . . . . Time . | . . . . . Total Part Build Rating . | . . . . . Parts Repaired . | . . . . . Time . | . . . . . Parts Recycled . | . . . . . Recycled Matter . | . . . . . Retrieved Matter . | . . . . . Retrieved Components 7 | . . . . 7 Parts Scanalyzed . | . . . . . Part Schematics Acquired . | . . . . . Parts Damaged . | . . . . . Bothacking | -11 -10 -10 -10 -7 ------------ Run | Yrd Mat Min Sub Rec Used RIF Installer . | . . . . . Robots Hacked . | . . . . . Non-combat . | . . . . . Combat . | . . . . . Robot Hacks Applied . | . . . . . Relay Couplers Released . | . . . . . Fabnet Peak Effective % . | . . . . . Robots Rewired . | . . . . . Allies Hacked . | . . . . . Hacks Repelled . | . . . . . Allies | -11 -10 -10 -10 -7 -------- Run | Yrd Mat Min Sub Rec Total Allies 2 | . . 2 . . Largest Group 2 | . . 2 2 . Highest-Rated Group 46 | . . 46 46 . Highest-Rated Ally 31 | . . 31 31 . Total Orders . | . . . . . Ally Attacks 26 | . . 8 18 . Total Damage 406 | . . 147 259 . Kills 6 | . . 2 4 . Allies Corrupted . | . . . . . Allies Melted . | . . . . . Intel | -11 -10 -10 -10 -7 ------- Run | Yrd Mat Min Sub Rec Robot Analysis Total . | . . . . . Derelict Logs Recovered 2 | . . 2 . . Drone Launches . | . . . . . Drone Recoveries . | . . . . . Exploration | -11 -10 -10 -10 -7 ------------- Run | Yrd Mat Min Sub Rec Turns Passed 3907 | 3 54 2010 683 1157 Spaces Moved 1800 | 3 41 830 333 593 Core 18 | . . . . 18 Treads 1220 | . . 559 333 328 Legs 562 | 3 41 271 . 247 Wheels . | . . . . . Hover . | . . . . . Flight . | . . . . . Fastest Speed 120 | 120 120 120 160 130 Average Speed 158 | 120 120 148 160 172 Slowest Speed 300 | 120 120 190 160 300 Overloaded Moves . | . . . . . Propulsion Burnouts . | . . . . . Robots Hopped . | . . . . . Cave-ins Triggered . | . . . . . Exploration Rate (%) 48 | 2 16 99 28 95 Regions Visited 4 Branch Regions 3 Pre-discovered Areas . | . . . . . Known Exits Taken . | . . . . . Unknown Exits Taken 4 | 1 1 1 1 . Scrap Searched 2 | . . 1 1 . Spaces Dug . | . . . . . Terrain Destroyed 227 | . . . 100 127 Melee . | . . . . . Projectile . | . . . . . AOE 227 | . . . 100 127 Terrain Rammed . | . . . . . Walls Destroyed . | . . . . . Machines Disabled . | . . . . . Actions | -11 -10 -10 -10 -7 --------- Run | Yrd Mat Min Sub Rec Total 2719 | 2 47 1558 401 711 Wait 780 | . . 694 2 84 Move 1796 | 2 40 829 332 593 Hop . | . . . . . Pick Up 13 | . 2 3 3 5 Fast Attach 11 | . 1 1 3 6 Attach 4 | . . 2 2 . Detach . | . . . . . Swap 7 | . . 1 5 1 Drop 24 | . 4 2 5 13 Fire 83 | . . 26 49 8 Melee . | . . . . . Ram 1 | . . . . 1 Kick . | . . . . . Crush . | . . . . . Escape Stasis . | . . . . . Rewire . | . . . . . Trap . | . . . . . Miscellaneous . | . . . . . Route ------- -11/Scrapyard -10/Materials -10/Mines (discovered 3 exits: [*Mat x2] / [*Sub]) -10/Subcaves (discovered 2 exits: [*Mat] / *Rec) -7/Recycling (discovered 1 exit: [*Fac]) History --------- Turn | Location | Event 1 | -11/Scrapyard | Discovered new exit (range 2) 4 | -11/Scrapyard | Entered Materials 52 | -10/Materials | Discovered new exit (range 6) 58 | -10/Materials | Entered Mines 130 | -10/Mines | Learned Materials emergency access door positions 131 | -10/Mines | Learned 2 Materials zone layouts 316 | -10/Mines | Build established: Mutant 471 | -10/Mines | Assembled infested the area 619 | -10/Mines | Discovered new exit (range 6) 825 | -10/Mines | Discovered new exit (range 7) 1606 | -10/Mines | Received a Rocket Launcher from a helpful Derelict 2060 | -10/Mines | Discovered new exit (range 5) 2068 | -10/Mines | Entered Subcaves 2068 | -10/Subcaves | Accompanied by 2 allies 2073 | -10/Subcaves | Led the pair of lost Derelicts to an unsafe place 2133 | -10/Subcaves | Discovered new exit (range 10) 2653 | -10/Subcaves | Core integrity fell below 50% 2706 | -10/Subcaves | Discovered new exit (range 12) 2751 | -10/Subcaves | Entered Recycling 3425 | -7/Recycling | Discovered new exit (range 16) 3553 | -7/Recycling | Scanned before Scraplab entrance 3561 | -7/Recycling | Angered Scraplab inhabitants 3690 | -7/Recycling | Found Prototype Device 3690 | -7/Recycling | Identified Scrap Engine 3907 | -7/Recycling | Core integrity fell below 20% 3908 | -7/Recycling | Destroyed self with Heavy Missile Launcher Last Messages --------------- 03905_ Destroyed Seismic Detector. 03905_ S-27 Virus destroyed. 03905_ A-02 Transporter destroyed. 03905_ T-07 Excavator destroyed. 03905_ R-06 Scavenger destroyed. 03905_ A-02 Transporter destroyed. 03905_ G-47 Trooper destroyed. 03905_ U-05 Engineer destroyed. 03905_ Destroyed Lgt. Ion Engine. 03905_ Destroyed Com. Wheel. 03905_ T-07 Excavator destroyed. 03906_ Penetrated by Slug. 03907_ The unstable cave ceiling collapses. 03908_ R-06 Scavenger collects Structural Scanner. 03908_ Destroyed Tractor Beam. 03908_ Recycling Unit disabled. 03908_ Destroyed Carbon-fiber Leg. 03908_ G-47 Trooper destroyed. 03908_ R-06 Scavenger destroyed. Map ----- +----------------------------------------------------+ | # ! ! # #????# #??????????????????? | | # !!! ! # ###### #??????????????????? | | # + / #??????????????????? | | #[ ! !! /= ######## #??????????????????? | | #################???# #??????????????????? | | ?????????????#T"#???# #??????????????????? | | ???????####### "#######+#######??????????????????? | | ???????# #????????????????????? | | ???????# < #????????????????????? | | ???????# #????????????????????? | | ???????######+########### #??########??????????? | | ?????????# #?????# #? #??????????? | | ?????????# #???###]! #? #??????????? | | ?????????# #???#""% # #??????????? | | ????????## #???#"Y # #??????????? | | ????????# #???#"" + #??????????? | | ?######### #???### # #??????????? | | ?# #?# #?????# # #??????????? | | ?# [ ## #?????# #? #??????????? | | ?# ### #?#?### #?### #####??????????? | | ?# !#?############ #"" #?????#??????????????? | | ?# #????????# #"Y ! #????????????????????? | | ?# #????????# # " ! #????????????????????? | | ?#! !#??####### #????????????????????? | | ?# ! #??#s gY * = h #????????????????????? | | ?# #??#t hi % %% % @ #????????????????????? | | ?# #??#=h t%ur g* *% #????????????????????? | | ?# #??# du %[ #????????????????????? | | ?# #???#####+## = ur #????????????????????? | | ?# [ #????# #????????????????????? | | ?# !=#????# #####+##+###+#####?????????????????? | | ?# [[#????# ## #?????????????????? | | ?##+##+###### ## #?????????????????? | | ??# ## ! #??? ???????????? | | ??#### ## #??? #??????????? | | ?????# # #??? #??????????? | | ?????# ## % #??? #??????????? | | ###### ## #??? #??????????? | | # ## ## ! #??? #??????###?? | | # ##"Y"#### #??? #??##### ### | | # #####"""#??# #??# #??# | | ## ##???#################+######??# #??# | | ?# #????????#* *#???????# #??##??## ##?# | | ?# #??????### *######### #### ### #?# | | ?# #??????# #?# | | ?# #??????# ? #?# | | ?# ########+## ?? #?# | | ?# + # ##"Y"###+###?# ???# | | ?# # # #???"# #### #????# | | ?# # # #????# ""## #????# | +----------------------------------------------------+ Best States ------------- Heat Dissipation 25 Energy Generation 15 Energy Capacity 250 Matter Stores 300 Matter Capacity 300 Sight Range 16 Terrain Scan Range 16 Terrain Scan Density 10 Armor Coverage 150 Evasion (%) 55 Recoil Reduction 2 Item Schematics ----------------- None Robot Schematics ------------------ None Fabricated ------------ Nothing Alien Tech Used ----------------- None Achievements -------------- None Challenges ------------ None Game ------ Seed GuidanceNeutronSpiker Manual? 0 Play Time 00:30:49 Cumulative 53.7 hours Start 2024.10.21 @ 20:45:41 End 2024.10.21 @ 21:00:58 Sessions 1 Manual Loads 0 Difficulty Rogue Special Mode None Game No. 53 Rogue 35 Adventurer 16 Explorer 2 Win Type - Total 1 Types 1/0/0/0/0/0/0/0/0 Lore% 13 Gallery% 41 Achievement% 35 Wizard Run 0 Options --------- Layout 2 ASCII 0 Keyboard 0 Movement Mouse Keybinds 1 Fullscreen 2 Font 24/Terminus Map View 50x44 Zoom Use 0% Tactical HUD 1 Map Filters NONE Filters NONE Steam X RUN: a529dc30-d75c-4345-a815-24b3f526380e